fUST/lending_fUST_20250426
["ID","MTS","AMOUNT","RATE_DAILY","PERIOD"]
[359045941,1745673039849,-400.0,0.00016986,2]
[359045943,1745673039858,-784.55,0.00016986,2]
[359045945,1745673039867,-1049.92,0.00016986,2]
[359045947,1745673039877,-500.0,0.00017203,2]
[359045949,1745673039886,-500.0,0.00017209,2]
[359045951,1745673039895,-500.0,0.00017209,2]
[359045952,1745673039904,-151.0,0.0001726,2]
[359045954,1745673039915,-400.0,0.0001726,2]
[359045957,1745673039926,-400.0,0.0001726,2]
[359045958,1745673039936,-689.12,0.0001726,2]
[359045961,1745673039946,-400.0,0.0001726,2]
[359045963,1745673039957,-400.0,0.0001726,2]
[359045964,1745673039967,-400.0,0.0001726,2]
[359045967,1745673039979,-863.09,0.0001726,2]
[359045969,1745673039989,-400.0,0.0001726,2]
[359045971,1745673040000,-577.48,0.0001726,2]
[359045973,1745673040010,-400.0,0.0001726,2]
[359045975,1745673040021,-400.0,0.0001726,2]
[359045976,1745673040030,-400.0,0.0001726,2]
[359045979,1745673040040,-1138.2,0.0001726,2]
[359045981,1745673040051,-400.0,0.0001726,2]
[359045983,1745673040061,-400.0,0.0001726,2]
[359045985,1745673040070,-400.0,0.0001726,2]
[359045987,1745673040080,-2814.86,0.0001726,2]
[359045989,1745673040089,-1163.17,0.0001726,2]
[359045991,1745673040099,-915.97,0.0001726,2]
[359045993,1745673040110,-1732.1,0.0001726,2]
[359045994,1745673040120,-493.64,0.0001726,2]
[359045997,1745673040130,-550.87,0.0001726,2]
[359045999,1745673040139,-596.53,0.0001726,2]
[359046001,1745673040149,-553.48,0.0001726,2]
[359046003,1745673040159,-400.0,0.0001726,2]
[359046005,1745673040168,-400.0,0.0001726,2]
[359046007,1745673040178,-400.0,0.0001726,2]
[359046009,1745673040187,-1061.39,0.0001726,2]
[359046011,1745673040197,-626.77,0.0001726,2]
[359046013,1745673040206,-894.63,0.0001726,2]
[359046015,1745673040216,-812.32,0.0001726,2]
[359046017,1745673040225,-400.0,0.0001726,2]
[359046019,1745673040238,-400.0,0.0001726,2]
[359046021,1745673040249,-400.0,0.0001726,2]
[359046023,1745673040258,-1012.86,0.0001726,2]
[359046025,1745673040267,-400.0,0.0001726,2]
[359046027,1745673040278,-400.0,0.0001726,2]
[359046029,1745673040288,-1519.55,0.0001726,2]
[359046031,1745673040298,-400.0,0.0001726,2]
[359046033,1745673040310,-400.0,0.0001726,2]
[359046035,1745673040320,-400.0,0.0001726,2]
[359046037,1745673040330,-400.0,0.0001726,2]
[359046039,1745673040340,-400.0,0.0001726,2]
[359046041,1745673040349,-1056.17,0.0001726,2]
[359046043,1745673040359,-827.32,0.0001726,2]
[359046045,1745673040369,-1256.04,0.0001726,2]
[359046047,1745673040379,-1080.37,0.0001726,2]
[359046049,1745673040389,-400.0,0.0001726,2]
[359046051,1745673040400,-400.0,0.0001726,2]
[359046053,1745673040410,-425.25,0.0001726,2]
[359046055,1745673040419,-784.55,0.0001726,2]
[359046058,1745673040430,-1049.92,0.0001726,2]
[359046060,1745673040440,-209.0,0.000173,2]
[359046062,1745673040450,-205.0,0.000173,2]
[359046064,1745673040459,-205.0,0.000173,2]
[359046066,1745673040469,-205.0,0.000173,2]
[359046068,1745673040479,-205.0,0.000173,2]
[359046070,1745673040488,-205.0,0.000173,2]
[359046072,1745673040497,-205.0,0.000173,2]
[359046074,1745673040507,-2903.9,0.000173,2]
[359046076,1745673040517,-2903.9,0.000173,2]
[359046078,1745673040526,-2903.9,0.000173,2]
[359046080,1745673040535,-2903.9,0.000173,2]
[359046082,1745673040544,-154.547996,0.000173,2]
[359046084,1745673040554,-628.539306,0.000173,2]
[359046086,1745673040563,-628.539306,0.000173,2]
[359046088,1745673040572,-151.0,0.000173,2]
[359046090,1745673040582,-151.0,0.000173,2]
[359046092,1745673040592,-151.0,0.000173,2]
[359046094,1745673040602,-151.0,0.000173,2]
[359046096,1745673040613,-151.0,0.000173,2]
[359046112,1745673040762,-151.0,0.000173,2]
[359046114,1745673040774,-151.0,0.000173,2]
[359046116,1745673040784,-156.338475,0.000173,2]
[359046118,1745673040794,-500.0,0.00017387,2]
[359046120,1745673040805,-500.0,0.00017387,2]
[359046122,1745673040815,-511.29337322,0.00017387,2]
[359046125,1745673040825,-500.0,0.00017387,2]
[359046127,1745673040835,-500.0,0.00017387,2]
[359046129,1745673040844,-400.0,0.00017534,2]
[359046131,1745673040854,-400.0,0.00017534,2]
[359046133,1745673040866,-689.12,0.00017534,2]
[359046135,1745673040876,-400.0,0.00017534,2]
[359046137,1745673040885,-400.0,0.00017534,2]
[359046139,1745673040895,-400.0,0.00017534,2]
[359046141,1745673040904,-863.09,0.00017534,2]
[359046143,1745673040914,-400.0,0.00017534,2]
[359046145,1745673040923,-151.0,0.00017534,2]
[359046147,1745673040933,-151.0,0.00017534,2]
[359046149,1745673040942,-577.48,0.00017534,2]
[359046151,1745673040951,-400.0,0.00017534,2]
[359046153,1745673040961,-400.0,0.00017534,2]
[359046155,1745673040970,-400.0,0.00017534,2]
[359046157,1745673040980,-1138.2,0.00017534,2]
[359046159,1745673040989,-1647.619654,0.00017534,2]
[359046161,1745673040999,-1647.619654,0.00017534,2]
[359046163,1745673041008,-400.0,0.00017534,2]
[359046165,1745673041018,-400.0,0.00017534,2]
[359046167,1745673041027,-400.0,0.00017534,2]
[359046169,1745673041038,-2814.86,0.00017534,2]
[359046171,1745673041048,-1163.17,0.00017534,2]
[359046173,1745673041057,-915.97,0.00017534,2]
[359046175,1745673041067,-1732.1,0.00017534,2]
[359046177,1745673041077,-550.87,0.00017534,2]
[359046179,1745673041087,-596.53,0.00017534,2]
[359046181,1745673041096,-553.48,0.00017534,2]
[359046183,1745673041106,-400.0,0.00017534,2]
[359046185,1745673041117,-400.0,0.00017534,2]
[359046187,1745673041127,-400.0,0.00017534,2]
[359046189,1745673041137,-1061.39,0.00017534,2]
[359046191,1745673041147,-626.77,0.00017534,2]
[359046193,1745673041156,-894.63,0.00017534,2]
[359046195,1745673041166,-812.32,0.00017534,2]
[359046197,1745673041176,-400.0,0.00017534,2]
[359046199,1745673041185,-400.0,0.00017534,2]
[359046201,1745673041195,-400.0,0.00017534,2]
[359046203,1745673041205,-1012.86,0.00017534,2]
[359046205,1745673041214,-168.22,0.00017534,2]
[359046207,1745673041223,-400.0,0.00017534,2]
[359046209,1745673041235,-1519.55,0.00017534,2]
[359046211,1745673041245,-400.0,0.00017534,2]
[359046213,1745673041255,-400.0,0.00017534,2]
[359046215,1745673041264,-400.0,0.00017534,2]
[359046217,1745673041274,-400.0,0.00017534,2]
[359046219,1745673041284,-400.0,0.00017534,2]
[359046221,1745673041293,-1056.17,0.00017534,2]
[359046223,1745673041303,-827.32,0.00017534,2]
[359046225,1745673041312,-1256.04,0.00017534,2]
[359046227,1745673041321,-1080.37,0.00017534,2]
[359046229,1745673041331,-500.0,0.00017534,2]
[359046231,1745673041340,-400.0,0.00017534,2]
[359046233,1745673041349,-784.55,0.00017534,2]
[359046235,1745673041359,-1049.92,0.00017534,2]
[359046237,1745673041370,-163.1948809,0.00017629,2]
[359046239,1745673041380,-165.32592118,0.00017655,2]
[359046241,1745673041389,-2845.09905718,0.00017693,2]
[359046243,1745673041398,-500.0,0.00017728,2]
[359046245,1745673041407,-168.80988721,0.00017768,2]
[359046247,1745673041417,-500.0,0.00017774,2]
[359046248,1745673041426,-400.0,0.00017808,2]
[359046250,1745673041435,-420.93,0.00017808,2]
[359046252,1745673041445,-151.0,0.00017808,2]
[359046254,1745673041454,-151.0,0.00017808,2]
[359046256,1745673041464,-689.12,0.00017808,2]
[359046258,1745673041474,-400.0,0.00017808,2]
[359046260,1745673041484,-400.0,0.00017808,2]
[359046262,1745673041494,-400.0,0.00017808,2]
[359046264,1745673041504,-863.09,0.00017808,2]
[359046266,1745673041514,-400.0,0.00017808,2]
[359046268,1745673041524,-577.48,0.00017808,2]
[359046270,1745673041533,-400.0,0.00017808,2]
[359046272,1745673041543,-400.0,0.00017808,2]
[359046274,1745673041553,-400.0,0.00017808,2]
[359046276,1745673041563,-1138.2,0.00017808,2]
[359046278,1745673041573,-1647.619654,0.00017808,2]
[359046280,1745673041582,-1647.619654,0.00017808,2]
[359046282,1745673041594,-400.0,0.00017808,2]
[359046284,1745673041604,-400.0,0.00017808,2]
[359046286,1745673041614,-400.0,0.00017808,2]
[359046288,1745673041625,-2814.86,0.00017808,2]
[359046290,1745673041635,-1163.17,0.00017808,2]
[359046292,1745673041644,-915.97,0.00017808,2]
[359046294,1745673041654,-1732.1,0.00017808,2]
[359046296,1745673041664,-628.539306,0.00017808,2]
[359046298,1745673041674,-628.539306,0.00017808,2]
[359046300,1745673041684,-550.87,0.00017808,2]
[359046302,1745673041694,-596.53,0.00017808,2]
[359046304,1745673041703,-553.48,0.00017808,2]
[359046306,1745673041713,-400.0,0.00017808,2]
[359046308,1745673041723,-234.05,0.00017808,2]
[359046310,1745673041732,-151.0,0.00017808,2]
[359046312,1745673041742,-180.65701099,0.00017808,2]
[359046314,1745673041751,-1061.39,0.00017808,2]
[359046316,1745673041761,-626.77,0.00017808,2]
[359046318,1745673041772,-151.0,0.00017808,2]
[359046320,1745673041783,-894.63,0.00017808,2]
[359046322,1745673041792,-812.32,0.00017808,2]
[359046324,1745673041802,-400.0,0.00017808,2]
[359046326,1745673041812,-400.0,0.00017808,2]
[359046328,1745673041821,-400.0,0.00017808,2]
[359046330,1745673041831,-1012.86,0.00017808,2]
[359046332,1745673041840,-151.0,0.00017808,2]
[359046334,1745673041850,-400.0,0.00017808,2]
[359046336,1745673041860,-1519.55,0.00017808,2]
[359046338,1745673041869,-400.0,0.00017808,2]
[359046339,1745673041878,-241.10144,0.00017808,2]
[359046341,1745673041888,-261.03402407,0.00017808,2]
[359046343,1745673041898,-400.0,0.00017808,2]
[359046345,1745673041909,-400.0,0.00017808,2]
[359046347,1745673041920,-400.0,0.00017808,2]
[359046349,1745673041930,-151.0,0.00017808,2]
[359046351,1745673041940,-1056.17,0.00017808,2]
[359046353,1745673041950,-827.32,0.00017808,2]
[359046355,1745673041959,-1256.04,0.00017808,2]
[359046357,1745673041969,-151.0,0.00017808,2]
[359046359,1745673041979,-1080.37,0.00017808,2]
[359046361,1745673041988,-400.0,0.00017808,2]
[359046363,1745673041997,-151.0,0.00017808,2]
[359046365,1745673042007,-784.55,0.00017808,2]
[359046367,1745673042016,-1049.92,0.00017808,2]
[359046369,1745673042026,-500.0,0.00017856,2]
[359046371,1745673042035,-500.0,0.00017856,2]
[359046373,1745673042045,-500.0,0.00017856,2]
[359046375,1745673042054,-500.0,0.00017856,2]
[359046377,1745673042064,-500.0,0.00017856,2]
[359046379,1745673042074,-500.0,0.00017856,2]
[359046381,1745673042084,-500.0,0.00017856,2]
[359046383,1745673042093,-518.50183798,0.00017856,2]
[359046385,1745673042103,-500.0,0.00017856,2]
[359046387,1745673042114,-500.0,0.00017856,2]
[359046389,1745673042123,-185.87911967,0.00017856,2]
[359046391,1745673042133,-500.59951752,0.00017856,2]
[359046392,1745673042142,-500.0,0.00017883,2]
[359046394,1745673042152,-420.0,0.00017952,2]
[359046396,1745673042162,-2417.91595344,0.00017972,2]
[359046399,1745673042172,-379.06604838,0.00018,2]
[359046400,1745673042182,-33470.0,0.00018,2]
[359046402,1745673042191,-33574.0,0.00018,2]
[359046404,1745673042200,-390.53328444,0.00018,2]
[359046406,1745673042211,-151.0,0.00018,2]
[359046408,1745673042220,-151.0,0.00018,2]
[359046411,1745673042232,-307.16,0.00018,2]
[359046413,1745673042245,-307.16,0.00018,2]
[359046415,1745673042254,-307.16,0.00018,2]
[359046417,1745673042265,-151.0,0.00018,2]
[359046419,1745673042275,-151.0,0.00018,2]
[359046421,1745673042285,-151.0,0.00018,2]
[359046423,1745673042295,-151.0,0.00018,2]
[359046425,1745673042304,-1286.14503,0.00018,2]
[359046427,1745673042315,-1647.619654,0.00018,2]
[359046429,1745673042325,-1647.619654,0.00018,2]
[359046431,1745673042334,-628.539306,0.00018,2]
[359046434,1745673042344,-628.539306,0.00018,2]
[359046436,1745673042354,-151.0,0.00018,2]
[359046438,1745673042365,-233.581022,0.00018,2]
[359046440,1745673042374,-151.0,0.00018,2]
[359046442,1745673042383,-151.0,0.00018,2]
[359046443,1745673042393,-151.0,0.00018,2]
[359046445,1745673042403,-883.11864994,0.0001801,2]
[359046447,1745673042412,-500.0,0.00018082,2]
[359046449,1745673042421,-899.33,0.00018082,2]
[359046452,1745673042432,-400.0,0.00018082,2]
[359046454,1745673042442,-689.12,0.00018082,2]
[359046455,1745673042451,-400.0,0.00018082,2]
[359046457,1745673042461,-400.0,0.00018082,2]
[359046459,1745673042470,-400.0,0.00018082,2]
[359046461,1745673042480,-863.09,0.00018082,2]
[359046463,1745673042489,-400.0,0.00018082,2]
[359046465,1745673042498,-151.0,0.00018082,2]
[359046467,1745673042508,-151.0,0.00018082,2]
[359046469,1745673042517,-577.48,0.00018082,2]
[359046471,1745673042527,-400.0,0.00018082,2]
[359046472,1745673042536,-400.0,0.00018082,2]
[359046474,1745673042546,-400.0,0.00018082,2]
[359046476,1745673042555,-1138.2,0.00018082,2]
[359046478,1745673042565,-400.0,0.00018082,2]
[359046480,1745673042575,-400.0,0.00018082,2]
[359046482,1745673042585,-400.0,0.00018082,2]
[359046484,1745673042595,-2814.86,0.00018082,2]
[359046486,1745673042605,-1163.17,0.00018082,2]
[359046487,1745673042615,-915.97,0.00018082,2]
[359046489,1745673042625,-1732.1,0.00018082,2]
[359046491,1745673042634,-628.539306,0.00018082,2]
[359046493,1745673042643,-628.539306,0.00018082,2]
[359046495,1745673042653,-550.87,0.00018082,2]
[359046497,1745673042663,-596.53,0.00018082,2]
[359046499,1745673042673,-553.48,0.00018082,2]
[359046501,1745673042682,-400.0,0.00018082,2]
[359046503,1745673042692,-151.0,0.00018082,2]
[359046505,1745673042701,-1061.39,0.00018082,2]
[359046507,1745673042711,-626.77,0.00018082,2]
[359046509,1745673042720,-894.63,0.00018082,2]
[359046511,1745673042730,-812.32,0.00018082,2]
[359046514,1745673042739,-400.0,0.00018082,2]
[359046515,1745673042749,-400.0,0.00018082,2]
[359046517,1745673042758,-400.0,0.00018082,2]
[359046519,1745673042768,-1012.86,0.00018082,2]
[359046520,1745673042777,-400.0,0.00018082,2]
[359046522,1745673042787,-1519.55,0.00018082,2]
[359046524,1745673042796,-400.0,0.00018082,2]
[359046526,1745673042807,-400.0,0.00018082,2]
[359046527,1745673042816,-400.0,0.00018082,2]
[359046529,1745673042826,-400.0,0.00018082,2]
[359046531,1745673042836,-151.0,0.00018082,2]
[359046533,1745673042845,-1056.17,0.00018082,2]
[359046535,1745673042855,-827.32,0.00018082,2]
[359046537,1745673042865,-1256.04,0.00018082,2]
[359046539,1745673042875,-1080.37,0.00018082,2]
[359046540,1745673042884,-400.0,0.00018082,2]
[359046542,1745673042894,-151.0,0.00018082,2]
[359046544,1745673042905,-784.55,0.00018082,2]
[359046546,1745673042914,-1049.92,0.00018082,2]
[359046548,1745673042924,-800.0,0.000182,3]
[359046550,1745673042933,-500.0,0.00018356,2]
[359046552,1745673042943,-899.33,0.00018356,2]
[359046554,1745673042952,-400.0,0.00018356,2]
[359046556,1745673042962,-151.0,0.00018356,2]
[359046558,1745673042971,-151.0,0.00018356,2]
[359046559,1745673042980,-689.12,0.00018356,2]
[359046561,1745673042990,-400.0,0.00018356,2]
[359046563,1745673042999,-400.0,0.00018356,2]
[359046565,1745673043009,-400.0,0.00018356,2]
[359046567,1745673043019,-863.09,0.00018356,2]
[359046569,1745673043029,-400.0,0.00018356,2]
[359046571,1745673043039,-151.0,0.00018356,2]
[359046573,1745673043053,-577.48,0.00018356,2]
[359046574,1745673043066,-400.0,0.00018356,2]
[359046576,1745673043078,-400.0,0.00018356,2]
[359046578,1745673043088,-400.0,0.00018356,2]
[359046580,1745673043098,-1138.2,0.00018356,2]
[359046582,1745673043108,-1647.619654,0.00018356,2]
[359046584,1745673043130,-1647.619654,0.00018356,2]
[359046587,1745673043149,-400.0,0.00018356,2]
[359046589,1745673043159,-400.0,0.00018356,2]
[359046591,1745673043168,-400.0,0.00018356,2]
[359046594,1745673043178,-2814.86,0.00018356,2]
[359046596,1745673043187,-1163.17,0.00018356,2]
[359046598,1745673043196,-915.97,0.00018356,2]
[359046600,1745673043206,-1732.1,0.00018356,2]
[359046602,1745673043215,-628.539306,0.00018356,2]
[359046604,1745673043224,-628.539306,0.00018356,2]
[359046605,1745673043236,-550.87,0.00018356,2]
[359046607,1745673043247,-596.53,0.00018356,2]
[359046609,1745673043257,-553.48,0.00018356,2]
[359046610,1745673043267,-400.0,0.00018356,2]
[359046612,1745673043276,-151.0,0.00018356,2]
[359046614,1745673043286,-1061.39,0.00018356,2]
[359046616,1745673043296,-626.77,0.00018356,2]
[359046618,1745673043306,-894.63,0.00018356,2]
[359046620,1745673043316,-812.32,0.00018356,2]
[359046622,1745673043327,-400.0,0.00018356,2]
[359046624,1745673043338,-400.0,0.00018356,2]
[359046625,1745673043347,-400.0,0.00018356,2]
[359046627,1745673043358,-1012.86,0.00018356,2]
[359046629,1745673043368,-400.0,0.00018356,2]
[359046631,1745673043377,-1519.55,0.00018356,2]
[359046633,1745673043387,-400.0,0.00018356,2]
[359046635,1745673043396,-400.0,0.00018356,2]
[359046637,1745673043405,-400.0,0.00018356,2]
[359046638,1745673043415,-400.0,0.00018356,2]
[359046640,1745673043425,-151.0,0.00018356,2]
[359046642,1745673043434,-1056.17,0.00018356,2]
[359046644,1745673043443,-827.32,0.00018356,2]
[359046646,1745673043452,-1256.04,0.00018356,2]
[359046648,1745673043462,-1080.37,0.00018356,2]
[359046649,1745673043472,-400.0,0.00018356,2]
[359046651,1745673043482,-166.299791,0.00018356,2]
[359046653,1745673043491,-784.55,0.00018356,2]
[359046655,1745673043500,-1049.92,0.00018356,2]
[359046657,1745673043509,-2845.09905718,0.00018486,2]
[359046659,1745673043520,-1000.0,0.000185,2]
[359046661,1745673043529,-500.0,0.0001863,2]
[359046662,1745673043539,-899.33,0.0001863,2]
[359046664,1745673043548,-400.0,0.0001863,2]
[359046666,1745673043557,-151.0,0.0001863,2]
[359046668,1745673043567,-151.0,0.0001863,2]
[359046670,1745673043576,-689.12,0.0001863,2]
[359046672,1745673043585,-400.0,0.0001863,2]
[359046673,1745673043595,-400.0,0.0001863,2]
[359046675,1745673043604,-400.0,0.0001863,2]
[359046677,1745673043615,-863.09,0.0001863,2]
[359046679,1745673043624,-400.0,0.0001863,2]
[359046681,1745673043634,-577.48,0.0001863,2]
[359046683,1745673043643,-400.0,0.0001863,2]
[359046685,1745673043652,-400.0,0.0001863,2]
[359046686,1745673043662,-400.0,0.0001863,2]
[359046688,1745673043672,-1138.2,0.0001863,2]
[359046690,1745673043682,-1647.619654,0.0001863,2]
[359046692,1745673043691,-1647.619654,0.0001863,2]
[359046694,1745673043700,-400.0,0.0001863,2]
[359046695,1745673043710,-400.0,0.0001863,2]
[359046697,1745673043719,-400.0,0.0001863,2]
[359046699,1745673043728,-2814.86,0.0001863,2]
[359046701,1745673043738,-1163.17,0.0001863,2]
[359046703,1745673043748,-915.97,0.0001863,2]
[359046705,1745673043757,-1732.1,0.0001863,2]
[359046707,1745673043766,-550.87,0.0001863,2]
[359046708,1745673043776,-596.53,0.0001863,2]
[359046710,1745673043785,-553.48,0.0001863,2]
[359046712,1745673043795,-400.0,0.0001863,2]
[359046714,1745673043804,-1061.39,0.0001863,2]
[359046716,1745673043814,-626.77,0.0001863,2]
[359046718,1745673043824,-894.63,0.0001863,2]
[359046720,1745673043834,-812.32,0.0001863,2]
[359046722,1745673043843,-400.0,0.0001863,2]
[359046723,1745673043853,-400.0,0.0001863,2]
[359046725,1745673043863,-400.0,0.0001863,2]
[359046727,1745673043873,-1012.86,0.0001863,2]
[359046729,1745673043883,-400.0,0.0001863,2]
[359046731,1745673043892,-1519.55,0.0001863,2]
[359046732,1745673043901,-400.0,0.0001863,2]
[359046734,1745673043911,-400.0,0.0001863,2]
[359046736,1745673043920,-400.0,0.0001863,2]
[359046738,1745673043930,-400.0,0.0001863,2]
[359046740,1745673043939,-1056.17,0.0001863,2]
[359046742,1745673043948,-827.32,0.0001863,2]
[359046743,1745673043957,-1256.04,0.0001863,2]
[359046745,1745673043967,-1080.37,0.0001863,2]
[359046747,1745673043977,-400.0,0.0001863,2]
[359046749,1745673043988,-784.55,0.0001863,2]
[359046751,1745673043998,-1049.92,0.0001863,2]
[359046753,1745673044007,-200.35360462,0.00018748,4]
[359046755,1745673044017,-13529.02150329,0.0001881,2]
[359046788,1745673044399,-1906.59972152,0.0001881,2]
[359046905,1745673045796,-403.0,0.00017052,2]
[359046906,1745673045806,-151.0,0.000173,2]
[359046907,1745673045817,-151.0,0.00017808,2]
[359046908,1745673045826,-6500.7580392,0.0001881,2]
[359047074,1745673095468,181.01510761,6.3e-07,2]
[359047075,1745673095655,181.01510761,6e-07,2]
[359047102,1745674038142,-300.0,0.00015415,2]
[359047103,1745674038168,-500.0,0.00015416,2]
[359047104,1745674038194,-500.0,0.00015416,2]
[359047105,1745674038220,-248.878534,0.00015416,2]
[359047106,1745674038257,-500.0,0.00015416,2]
[359047107,1745674038283,-245.00354021,0.00015416,2]
[359047108,1745674038315,-500.0,0.00015416,2]
[359047109,1745674038341,-264.69487118,0.00015416,2]
[359047110,1745674038373,-262.29083561,0.00015416,2]
[359047111,1745674046104,-237.70916439,0.00015416,2]
[359047112,1745674046132,-500.0,0.00015416,2]
[359047113,1745674046160,-500.0,0.00015416,2]
[359047114,1745674046186,-500.0,0.00015416,2]
[359047115,1745674046213,-35.33871692,0.00015416,2]
[359047116,1745674051100,-464.66128308,0.00015416,2]
[359047117,1745674051129,-125.19552796,0.00015416,2]
[359047121,1745674167112,-11128.89994466,0.00015282,2]
[359047122,1745674168103,-2191.9072,0.00015282,2]
[359047154,1745674231895,-18.36328294,0.00015282,2]
[359047156,1745674231906,-300.0,0.00015415,2]
[359047159,1745674231916,-300.0,0.00015415,2]
[359047160,1745674231927,-300.0,0.00015415,2]
[359047161,1745674231938,-374.80447204,0.00015416,2]
[359047162,1745674231948,-500.0,0.00015416,2]
[359047163,1745674231958,-500.0,0.00015416,2]
[359047164,1745674231969,-215.06985237,0.00015416,2]
[359047165,1745674231981,-284.93014763,0.00015416,2]
[359047166,1745674231992,-500.0,0.00015416,2]
[359047167,1745674232002,-500.0,0.00015416,2]
[359047168,1745674232012,-500.0,0.00015416,2]
[359047169,1745674232023,-500.0,0.00015416,2]
[359047170,1745674232033,-502.74083291,0.00015416,2]
[359047171,1745674232043,-500.0,0.00015416,2]
[359047172,1745674232053,-12889.67959712,0.00015417,2]
[359047173,1745674232065,-6548.66299708,0.00015417,2]
[359047174,1745674232077,-251.425028,0.00015473,2]
[359047175,1745674232087,-166.91346257,0.00016338,2]
[359047176,1745674232097,-151.0,0.00016428,2]
[359047177,1745674232106,-222.7476,0.00016428,2]
[359047178,1745674232116,-151.0,0.00016428,2]
[359047179,1745674232126,-633.92,0.00016428,3]
[359047180,1745674232135,-335.40446273,0.00016437,2]
[359047181,1745674232146,-419.45817655,0.00016437,2]
[359047182,1745674232156,-500.0,0.00016438,2]
[359047183,1745674232165,-503.04762056,0.00016438,2]
[359047184,1745674232175,-482.82358185,0.00016438,2]
[359047185,1745674232185,-500.0,0.00016438,2]
[359047186,1745674232195,-400.0,0.00016438,2]
[359047187,1745674232205,-400.0,0.00016438,2]
[359047188,1745674232215,-400.0,0.00016438,2]
[359047189,1745674232225,-500.0,0.00016438,2]
[359047190,1745674232235,-400.0,0.00016438,2]
[359047191,1745674232247,-500.0,0.00016438,2]
[359047192,1745674232257,-257.87991511,0.00016438,2]
[359047193,1745674232267,-400.0,0.00016438,2]
[359047194,1745674232278,-500.0,0.00016438,2]
[359047195,1745674232287,-400.0,0.00016438,2]
[359047196,1745674232298,-400.0,0.00016438,2]
[359047197,1745674232309,-500.0,0.00016438,2]
[359047198,1745674232319,-400.0,0.00016438,2]
[359047199,1745674232329,-500.0,0.00016438,2]
[359047200,1745674232339,-400.0,0.00016438,2]
[359047201,1745674232349,-400.0,0.00016438,2]
[359047202,1745674232364,-500.0,0.00016438,2]
[359047203,1745674232374,-500.0,0.00016438,2]
[359047204,1745674232384,-400.0,0.00016438,2]
[359047205,1745674232394,-500.0,0.00016438,2]
[359047206,1745674232404,-400.0,0.00016438,2]
[359047207,1745674232414,-510.25166452,0.00016438,2]
[359047208,1745674232424,-400.0,0.00016438,2]
[359047209,1745674232435,-400.0,0.00016438,2]
[359047210,1745674232446,-400.0,0.00016438,2]
[359047211,1745674232457,-400.0,0.00016438,2]
[359047212,1745674232467,-400.0,0.00016438,2]
[359047213,1745674232476,-400.0,0.00016438,2]
[359047214,1745674232486,-400.0,0.00016438,2]
[359047215,1745674232498,-400.0,0.00016438,2]
[359047216,1745674232508,-400.0,0.00016438,2]
[359047217,1745674232519,-400.0,0.00016438,2]
[359047218,1745674232531,-400.0,0.00016438,2]
[359047219,1745674232541,-400.0,0.00016438,2]
[359047220,1745674232551,-400.0,0.00016438,2]
[359047221,1745674232562,-400.0,0.00016438,2]